[Event "45th FIDE Olympiad 2024"]
[Site "Budapest"]
[Date "2024.09.15"]
[Round "5.78"]
[White "Kibrom, Weldegebriel Beraki"]
[Black "Young, Christopher"]
[Result "1-0"]
[ECO "E94"]
[WhiteElo "1885"]
[BlackElo "1758"]
[PlyCount "63"]
[EventDate "2024.09.05"]
[EventType "team-tourn"]
[EventCountry "HUN"]
[WhiteTeam "Eritrea"]
[BlackTeam "Cayman Islands"]
[WhiteTeamCountry "ERI"]
[BlackTeamCountry "CAY"]
[TimeControl "40/5400+30:1800+30"]

1. d4 Nf6 2. c4 g6 3. Nc3 Bg7 4. e4 d6 5. Be2 O-O 6. Nf3 e5 7. d5 a5 8. Bg5 Nbd7 9. Nd2 Nc5 10. O-O h6 11. Be3 Nfd7 12. b3 f5 13. f3 Nf6 14. a3 f4 15. Bf2 g5 16. b4 axb4 17. axb4 Rxa1 18. Qxa1 Na6 19. Qa3 h5 20. c5 Nb8 21. cxd6 cxd6 22. Nc4 Ne8 23. Bb6 Qd7 24. b5 Nc7 25. Qa7 Nba6 26. bxa6 Nxa6 27. Bf2 g4 28. Nb6 Qc7 29. Nb5 Qe7 30. Rc1 g3 31. Nxc8 gxf2+ 32. Qxf2 1-0

[Event "45th FIDE Olympiad 2024"]
[Site "Budapest"]
[Date "2024.09.15"]
[Round "5.79"]
[White "Livaic, Leon"]
[Black "Burovic, Rijad"]
[Result "1-0"]
[ECO "E71"]
[WhiteElo "2550"]
[BlackElo "2426"]
[Annotator "TA"]
[PlyCount "137"]
[EventDate "2024.09.05"]
[EventType "team-tourn"]
[EventCountry "HUN"]
[SourceTitle "playchess.com"]
[Source "ChessBase"]
[SourceQuality "1"]
[WhiteTeam "Croatia"]
[BlackTeam "Bosnia & Herzegovina"]
[WhiteTeamCountry "CRO"]
[BlackTeamCountry "BIH"]
[TimeControl "40/5400+30:1800+30"]

{[%evp 58,137,33,34,38,25,26,12,12,8,11,7,15,8,51,34,50,9,44,9,113,90,189,183,184,175,239,138,120,89,267,261,418,418,418,418,546,546,617,617,442,575,702,689,734,640,1183,1237,1191,1200,1368,1352,1369,2389,3029,2049,3659,2075,3707,3627,3456,2813,2206,1391,2266,2053,4622,4622,29967,29961,29989,29990,29990,29991,29991,29991,29992,29991,29991,29992,29992,29993]} 1. d4 Nf6 2. c4 g6 3. Nc3 Bg7 4. e4 d6 5. h3 O-O 6. Be3 e5 7. d5 Na6 8. g4 {E71: King's Indian: 4 e4 d6 5 h3.} Nc5 9. f3 a5 10. Qd2 {10.Nge2 is more advanced technology.} c6 11. Nge2 a4 12. Nc1 cxd5 13. cxd5 Bd7 14. Nd3 Nxd3+ 15. Bxd3 Qa5 16. Ne2 $146 ({Predecessor:} 16. a3 Rfc8 17. O-O Ne8 18. Rac1 Nc7 19. Qf2 b5 20. Na2 Ne8 21. Bb6 Qa6 22. Nb4 {1-0 Salem,A (2690)-Costachi,M (2463) Wch Blitz Warsaw 2021 (9)}) 16... Rfc8 17. Qxa5 Rxa5 18. Kd2 Ne8 19. Rhc1 Rxc1 20. Rxc1 Bf6 21. Bb6 Ra8 22. Rc2 h5 23. Nc3 hxg4 24. hxg4 Bg5+ 25. Be3 Bxe3+ 26. Kxe3 Ra5 27. Nb1 Kf8 28. Kd2 b5 29. g5 Ra7 30. Nc3 Nc7 31. Ke3 Rb7 32. Ne2 Na6 33. Rc1 Nc5 34. f4 exf4+ 35. Nxf4 Ke7 36. Rh1 Be8 37. Kd4 Nd7 38. Be2 Ne5 (38... Rc7 $1 $11) 39. Nd3 $16 Nxd3 (39... Nc4 $16) 40. Bxd3 $18 (40. Kxd3 Rc7 $11) 40... b4 41. e5 Bb5 {[#]} (41... dxe5+ 42. Kxe5 b3 43. a3 $18) (41... Rc7 {was worth a try.} 42. Rf1 dxe5+ 43. Kxe5 Kd8) 42. Bxb5 (42. Bxg6 $1 $18 b3 (42... dxe5+ $2 43. Kxe5 Be8 44. Bd3 $18) 43. axb3) 42... Rxb5 $16 43. Rc1 Kd7 $2 (43... dxe5+ $16 44. Kxe5 Kd7) 44. exd6 $18 Kxd6 $2 (44... b3 {might work better.} 45. a3 Rb8) 45. Rc6+ $18 Kd7 46. Ra6 a3 47. b3 (47. bxa3 bxa3 48. Ke5 (48. Rxa3 Rb2 $11) 48... Rb2 49. Ra7+ (49. Rxa3 Re2+ 50. Kf6 Rf2+ 51. Ke5 Re2+ 52. Kd4 Rd2+ 53. Ke4 Re2+ 54. Kd4 Rd2+ 55. Kc5 Rc2+ 56. Kd4 Rd2+ $11) 49... Kc8 50. Rxa3 Rf2 $18) 47... Rb8 48. Kc5 Rc8+ 49. Kxb4 Rc2 50. Rxa3 Kd6 51. Ra7 Rf2 52. a4 Kxd5 53. Rc7 Kd6 54. Rc1 f6 55. gxf6 Rxf6 56. a5 Rf8 57. Rg1 Rf6 58. Ka4 Kc6 59. b4 Kb7 60. Rg4 Re6 61. Rf4 Re7 62. Rf6 Rg7 63. a6+ Ka8 64. Ka5 Rg8 65. b5 g5 66. b6 g4 67. a7 Kb7 68. Rf7+ Kc6 69. b7 1-0

[Event "45th FIDE Olympiad 2024"]
[Site "Budapest"]
[Date "2024.09.15"]
[Round "5.79"]
[White "Shaw, Clifford"]
[Black "Lilay, Weldu Gebru"]
[Result "0-1"]
[ECO "B21"]
[WhiteElo "1744"]
[BlackElo "1977"]
[PlyCount "74"]
[EventDate "2024.09.05"]
[EventType "team-tourn"]
[EventCountry "HUN"]
[WhiteTeam "Cayman Islands"]
[BlackTeam "Eritrea"]
[WhiteTeamCountry "CAY"]
[BlackTeamCountry "ERI"]
[TimeControl "40/5400+30:1800+30"]

1. e4 c5 2. d4 cxd4 3. c3 dxc3 4. Nxc3 Nc6 5. Nf3 e6 6. Bc4 d6 7. O-O Be7 8. Qe2 a6 9. Rd1 Qc7 10. Bf4 b5 11. Bxb5 axb5 12. Nxb5 Qb6 13. Nxd6+ Bxd6 14. Rxd6 Nge7 15. a3 O-O 16. Rc1 Rd8 17. e5 Ba6 18. Qd2 Rxd6 19. exd6 Nd5 20. b4 Bb5 21. Ne5 Nd4 22. d7 Ne2+ 23. Qxe2 Bxe2 24. Rc8+ Qd8 25. Rxa8 Qxa8 26. Nc6 Nxf4 27. d8=Q+ Qxd8 28. Nxd8 Bb5 29. f3 Kf8 30. Nb7 Ke7 31. Kf2 Ba6 32. Nc5 Nd3+ 33. Nxd3 Bxd3 34. Ke3 Bb5 35. Kd4 Kd6 36. f4 f6 37. g3 e5+ {0-} 0-1

[Event "45th FIDE Olympiad 2024"]
[Site "Budapest"]
[Date "2024.09.15"]
[Round "5.80"]
[White "Culum, Sanjin"]
[Black "Stevic, Hrvoje"]
[Result "1/2-1/2"]
[ECO "B47"]
[WhiteElo "2409"]
[BlackElo "2531"]
[Annotator "TA"]
[PlyCount "81"]
[EventDate "2024.09.05"]
[EventType "team-tourn"]
[EventCountry "HUN"]
[SourceTitle "playchess.com"]
[Source "ChessBase"]
[SourceQuality "1"]
[WhiteTeam "Bosnia & Herzegovina"]
[BlackTeam "Croatia"]
[WhiteTeamCountry "BIH"]
[BlackTeamCountry "CRO"]
[TimeControl "40/5400+30:1800+30"]

{[%evp 11,81,31,28,13,25,24,20,18,28,18,28,20,37,19,27,33,27,27,28,35,35,26,37,43,51,42,106,51,86,52,50,25,21,25,43,41,48,0,0,-17,-13,-87,-72,-85,-21,-65,-77,-79,-61,-66,-58,-84,-35,-39,-36,-28,-31,-43,-28,-85,-68,-67,-55,-92,0,-68,0,-95,0,-107,0,-102]} 1. e4 c5 2. Nf3 e6 3. d4 cxd4 4. Nxd4 Nc6 5. Nc3 a6 6. Be2 Qc7 7. Nxc6 bxc6 8. Qd3 d5 9. Qg3 Qxg3 10. hxg3 {[%cal Bh2g3,Bg3g4,Bg4g5][%mdl 32]} Nf6 {[%cal Bg8f6,Bf6d7,Bd7c5][%mdl 32]} 11. g4 Bb7 12. exd5 cxd5 13. g5 Nd7 14. Be3 Bc5 {[#] ...d4 would now be deadly.} 15. Bxc5 Nxc5 16. O-O-O O-O 17. Rd4 f6 18. gxf6 gxf6 (18... Rxf6 $14 19. f4 Bc6) 19. Bf3 {White is more active.} (19. Rh6 $16) 19... Rac8 20. Re1 Rc7 21. Bg4 f5 22. Bh3 Rf6 23. f3 Rh6 24. Na4 (24. Ne2 $14) 24... Nd7 $11 25. f4 Kf7 26. Rb4 (26. Re3 $11) 26... Rh4 $17 27. Nc3 Nf6 ({Black should try} 27... Nc5 $17 28. Rd1 Ne4) 28. Kd2 Bc8 29. Ra4 Rc6 30. Rd4 Rb6 31. b4 Ne8 (31... Bd7 $17 32. a4 Rb7) 32. Na4 $15 Rc6 33. Nc5 Nd6 34. a4 {Prevents Nb5.} Kf6 35. c3 (35. Rh1 $1 $11) 35... Rc7 $17 36. Rf1 Rg7 37. Rb1 Rc7 38. Rf1 $1 Rg7 39. Rb1 $1 Rc7 (39... Bb7 $17 40. Nxb7 Rxb7) 40. Re1 (40. Rf1 $1 $11 {keeps the balance.}) 40... Rg7 41. Rb1 $1 {Weighted Error Value: White=0.20 (precise) /Black=0.23 (precise) .  Mistake:       	White=5     	Black=4      Inaccurate:     	White=4     	Black=1      OK:         	White=13    	Black=9      Best:        	---       	Black=1      Strong:       	White=3     	---} 1/2-1/2

[Event "45th FIDE Olympiad 2024"]
[Site "Budapest"]
[Date "2024.09.15"]
[Round "5.80"]
[White "Samuel, Merhawi Gebrehiwet"]
[Black "Tracey, Shaun M"]
[Result "1-0"]
[ECO "B01"]
[WhiteElo "1788"]
[BlackElo "1684"]
[PlyCount "81"]
[EventDate "2024.09.05"]
[EventType "team-tourn"]
[EventCountry "HUN"]
[WhiteTeam "Eritrea"]
[BlackTeam "Cayman Islands"]
[WhiteTeamCountry "ERI"]
[BlackTeamCountry "CAY"]
[TimeControl "40/5400+30:1800+30"]

1. e4 d5 2. exd5 Nf6 3. c4 c6 4. dxc6 Nxc6 5. Nf3 e5 6. d3 Bc5 7. Be2 Qb6 8. O-O Ng4 9. Qe1 Nb4 10. Na3 Bf5 11. d4 exd4 12. Nxd4 Nxf2 13. Be3 Bxd4 14. Bxd4 Qxd4 15. Nb5 Qc5 16. Qxf2 Qxf2+ 17. Rxf2 Be6 18. Nc7+ Ke7 19. Nxa8 Rxa8 20. a3 Nc6 21. Rd1 g6 22. b4 h5 23. c5 Rc8 24. Bf3 Rc7 25. Re2 Kf6 26. Rd6 Ne7 27. Rd8 a6 28. Rb8 Bc8 29. Rd2 Nc6 30. Rd6+ Ke7 31. Bxc6 bxc6 32. h4 Ke8 33. Kf2 Ke7 34. Ke3 Ke8 35. Kf4 Ke7 36. Ke5 Bb7 37. Rdd8 f6+ 38. Kf4 Kf7 39. Rh8 Ke6 40. Rbd8 a5 41. Rd6+ 1-0

[Event "45th FIDE Olympiad 2024"]
[Site "Budapest"]
[Date "2024.09.15"]
[Round "5.81"]
[White "Vocaturo, Daniele"]
[Black "Bachmann, Axel"]
[Result "1/2-1/2"]
[ECO "B35"]
[WhiteElo "2600"]
[BlackElo "2560"]
[Annotator "TA"]
[PlyCount "103"]
[EventDate "2024.09.05"]
[EventType "team-tourn"]
[EventCountry "HUN"]
[SourceTitle "playchess.com"]
[Source "ChessBase"]
[SourceQuality "1"]
[WhiteTeam "Italy"]
[BlackTeam "Paraguay"]
[WhiteTeamCountry "ITA"]
[BlackTeamCountry "PAR"]
[TimeControl "40/5400+30:1800+30"]

{[%evp 41,103,42,32,37,60,33,28,-49,0,-15,13,-26,9,0,61,60,127,108,232,213,232,150,139,141,158,152,162,122,196,195,306,275,376,368,371,352,357,352,329,0,374,325,313,321,295,185,183,193,204,209,202,205,190,207,200,113,111,89,93,87,91,93,90,80]} 1. e4 c5 2. Nf3 Nc6 3. Nc3 g6 4. d4 cxd4 5. Nxd4 Bg7 6. Be3 Nf6 7. Bc4 Qa5 8. O-O O-O 9. Bb3 d6 10. h3 Bd7 11. Nf3 {B35: Sicilian: Accelerated Dragon with 5 Nc3: main line.} b5 12. a3 Rab8 $146 ({Predecessor:} 12... Rfc8 13. Qe2 Rab8 14. Rfd1 Be8 15. Bd2 Qb6 16. Nd5 Nxd5 17. exd5 Ne5 18. Nxe5 Bxe5 {½-½ Kollars,D (2500)-Sica,M (2178) Wch U18 Montevideo 2017 (1)}) 13. Re1 Qd8 14. Qd2 Rb7 15. Bh6 Na5 16. Bxg7 Kxg7 17. Nd5 Nxb3 18. cxb3 e5 19. Rad1 Ne8 20. Nh2 Be6 21. Ng4 Qh4 22. Nge3 Kh8 23. f3 f5 24. Nf1 (24. f4 $11) 24... Rbf7 (24... f4 $15) 25. b4 a6 26. Nc3 Kg8 27. Qf2 Qg5 (27... Qxf2+ $11 28. Kxf2 f4) 28. exf5 $14 Bxf5 (28... gxf5 $14 29. f4 Qh6 (29... Qg7 30. Rd2 $16)) 29. Ng3 $1 $16 Bxh3 {[#]} (29... Qe7 $16 {keeps fighting.} 30. Nce4 Bc8) 30. Nce4 $1 $18 (30. gxh3 $6 Rxf3 31. Nce4 Rxf2) 30... Qh4 31. Nxd6 Nxd6 32. Rxd6 Bg4 33. Ne4 (33. Rxa6 Bxf3 $15) (33. Rxe5 $2 Rxf3 34. gxf3 Rxf3 35. Re8+ (35. Qg2 $2 Rxg3 $19) 35... Kf7 36. Qa7+ Kxe8 37. Qa8+ Kf7 38. Qd5+ Kf8 39. Rd8+ Kg7 40. Qd4+ Kh6 41. Qd2+ Qg5 $19) 33... Qe7 34. Rd2 (34. Rxa6 Bxf3 35. gxf3 Rxf3 $11) 34... Bc8 (34... Bf5 $16 {was necessary.} 35. Nc5 Qf6) 35. Nd6 $18 Rf4 (35... Rf6 {was worth a try.}) 36. Qc5 $18 Qh4 37. Qxe5 (37. Rxe5 Bg4 38. Qd5+ (38. fxg4 $2 Rf1#) 38... Kh8 $18) 37... Bd7 38. Ree2 Bc6 39. Qe6+ Kh8 40. Qe5+ Kg8 41. Nc8 Rc4 42. Rd1 ({Worse is} 42. Ne7+ Kf7 43. Qd6 (43. Qe6+ Kg7 $18) 43... Rc1+ 44. Rd1 Rxd1+ 45. Qxd1 Qf6 46. Qb3+ Kg7 $11) 42... Qf6 (42... Rxc8 $2 {is the wrong capture.} 43. Qe6+ Kg7 44. Qxc8 $18) 43. Ne7+ Kg7 44. Nxc6 Rxc6 45. Rd7+ Rf7 46. Rxf7+ Kxf7 {[#]} 47. Qe8+ $1 Kg7 48. Qe7+ (48. Qd7+ $18 Kh6 49. g3 Rc1+ (49... Qxf3 $2 {loses.} 50. Rh2+ Kg5 51. Qd2+ Kf5 52. Rf2 $18) 50. Kg2) 48... Qf7 $16 49. Qe5+ Qf6 50. Kf2 h5 51. Qe7+ Qxe7 52. Rxe7+ 1/2-1/2

[Event "45th FIDE Olympiad 2024"]
[Site "Budapest"]
[Date "2024.09.15"]
[Round "5.81"]
[White "Muhammed, Shuaau"]
[Black "Solomon, Joshua"]
[Result "1-0"]
[ECO "B12"]
[WhiteElo "2052"]
[BlackElo "1587"]
[PlyCount "81"]
[EventDate "2024.09.05"]
[EventType "team-tourn"]
[EventCountry "HUN"]
[WhiteTeam "Maldives"]
[BlackTeam "Antigua and Barbuda"]
[WhiteTeamCountry "MDV"]
[TimeControl "40/5400+30:1800+30"]

1. e4 c6 2. d4 d5 3. e5 c5 4. dxc5 e6 5. a3 Bxc5 6. b4 Be7 7. Bb2 Nh6 8. Bd3 O-O 9. Nf3 Nd7 10. Nbd2 a5 11. b5 Nc5 12. a4 Nxd3+ 13. cxd3 Bd7 14. O-O Nf5 15. g4 Nh6 16. h3 f6 17. exf6 Bxf6 18. Bxf6 Qxf6 19. d4 Rac8 20. Ne5 Qh4 21. Kg2 Rc3 22. Ndf3 Qe7 23. Qd2 Rcxf3 24. Nxf3 Be8 25. Ne5 Nf7 26. Nxf7 Bxf7 27. Qxa5 h5 28. Rac1 Qg5 29. f3 h4 30. Qe1 Qf6 31. Qe5 Qg6 32. Rc7 Qd3 33. Rxb7 Qc2+ 34. Rf2 Qxa4 35. b6 Rc8 36. Rb8 Rxb8 37. Qxb8+ Kh7 38. b7 Qxd4 39. Qd8 Qf4 40. b8=Q e5 41. Qxh4+ 1-0

[Event "45th FIDE Olympiad 2024"]
[Site "Budapest"]
[Date "2024.09.15"]
[Round "5.82"]
[White "Delgado Ramirez, Neuris"]
[Black "Lodici, Lorenzo"]
[Result "1-0"]
[ECO "C50"]
[WhiteElo "2484"]
[BlackElo "2556"]
[Annotator "TA"]
[PlyCount "75"]
[EventDate "2024.09.05"]
[EventType "team-tourn"]
[EventCountry "HUN"]
[SourceTitle "playchess.com"]
[Source "ChessBase"]
[SourceQuality "1"]
[WhiteTeam "Paraguay"]
[BlackTeam "Italy"]
[WhiteTeamCountry "PAR"]
[BlackTeamCountry "ITA"]
[TimeControl "40/5400+30:1800+30"]

{[%evp 10,75,0,0,8,0,0,0,0,0,0,0,67,12,19,17,30,22,11,0,10,16,31,30,20,22,35,7,17,9,13,30,0,0,41,16,29,15,68,76,132,111,375,374,372,378,454,454,518,522,518,471,534,542,552,545,545,543,538,525,679,675,29985,29985,29985,29986,29994,29995]} 1. e4 e5 2. Nf3 Nc6 3. Bc4 Nf6 4. d3 Bc5 5. Be3 Bxe3 6. fxe3 Qe7 7. a4 {[%cal Ba2a4,Ba4a5,Ba5a6][%mdl 32]} d6 8. O-O Be6 {The position is equal.} 9. Bxe6 Qxe6 10. a5 d5 (10... O-O $11) 11. Nc3 (11. Ng5 $14 Qe7 12. Nc3) 11... h6 $11 12. exd5 Nxd5 13. Nxd5 Qxd5 14. a6 b5 {[#]} 15. c4 $1 bxc4 16. Qa4 {[%cal Of3e5]} O-O 17. Rfc1 Qd6 (17... Qc5 $2 18. d4 (18. Kh1 Qd6 $14) 18... Qd6 19. Qxc4 $18) 18. Rxc4 Ne7 {[%cal Of8b8]} 19. Qa3 f6 20. e4 Qb6+ 21. Kf1 Rf7 22. Rb4 Qe6 23. Rc1 Nc6 ({Black should try} 23... Ng6 $11) 24. Rbc4 $14 {[%cal Bb4c4,Bc4c6,Bc6c7,Bc7a7,Ba7d7][%mdl 32]} Nb8 (24... Nd4 $142) 25. Nh4 {White is more active.} (25. Rxc7 Rxc7 26. Rxc7 Nxa6 $14) 25... Nxa6 $2 {[%mdl 8192] Loses the game.} (25... Qb6 $16 {was worth a try.} 26. R1c2 (26. Rb4 Qe6 $16) 26... Kh7 (26... Qxa6 $2 {loses.} 27. Rxc7 Qxa3 28. bxa3 $18) (26... Nxa6 $2 27. Rc6 $18)) 26. Rc6 $18 Qg4 {[#]} 27. Nf3 (27. Qxa6 Qxh4 28. Kg1 Rd7 29. Qc4+ Kh7 30. Rxc7 Rxc7 31. Qxc7 Qf4 $14) 27... Nb8 28. Rxc7 Nd7 {Black is weak on the light squares} 29. Qa2 {[%cal Oh2h3] Strongly threatening h3!} ({Not} 29. Rxa7 Rxa7 30. Qxa7 Nf8 $16) 29... Raf8 30. Rxa7 Kh8 31. Rcc7 f5 32. Rxd7 Rxd7 33. Rxd7 fxe4 34. Qa4 Qf4 {Threatens to win with ...Qc1+.} 35. Qxe4 Qxh2 36. Qg4 {[%csl Gd7][%cal Rg4g7] White mates.} Qh1+ 37. Ke2 {[%csl Gd7][%cal Rg4g7]} Rg8 38. Nxe5 {Weighted Error Value: White=0.06 (flawless) /Black=0.56.  Loses game:     	---       	Black=1      Mistake:       	White=1     	Black=3      Inaccurate:     	White=1     	Black=2      OK:         	White=15    	Black=10     Best:        	White=3     	Black=1} 1-0

[Event "45th FIDE Olympiad 2024"]
[Site "Budapest"]
[Date "2024.09.15"]
[Round "5.82"]
[White "Matthew, Bailey"]
[Black "Mohamed, Hassan"]
[Result "1-0"]
[ECO "D35"]
[WhiteElo "1548"]
[BlackElo "1880"]
[PlyCount "79"]
[EventDate "2024.09.05"]
[EventType "team-tourn"]
[EventCountry "HUN"]
[WhiteTeam "Antigua and Barbuda"]
[BlackTeam "Maldives"]
[BlackTeamCountry "MDV"]
[TimeControl "40/5400+30:1800+30"]

1. d4 Nf6 2. c4 e6 3. Nc3 d5 4. cxd5 exd5 5. Bg5 Be7 6. Qc2 h6 7. Bh4 a6 8. e3 Nc6 9. a3 Bd7 10. Bxf6 Bxf6 11. Nxd5 O-O 12. Bd3 Re8 13. Ne2 Bg4 14. Nxf6+ Qxf6 15. O-O Qg5 16. Rae1 Bf3 17. Ng3 Bd5 18. Bc4 Rad8 19. Bxd5 Rxd5 20. Rc1 h5 21. Ne4 Qg4 22. f3 Qe6 23. Rfe1 Qf5 24. Qf2 f6 25. b4 Qc8 26. Qa2 Qe6 27. Nc3 Ne7 28. Nxd5 Nxd5 29. e4 Nf4 30. Qxe6+ Nxe6 31. d5 Nf4 32. Rxc7 Nxd5 33. Rxb7 Nf4 34. Rd1 Rc8 35. Rd2 Rc3 36. Rdd7 Ne6 37. Re7 Rc6 38. f4 g6 39. Re8+ Nf8 40. Rbb8 1-0

[Event "45th FIDE Olympiad 2024"]
[Site "Budapest"]
[Date "2024.09.15"]
[Round "5.83"]
[White "Moroni, Luca Jr"]
[Black "Cubas, Jose Fernando"]
[Result "1-0"]
[ECO "D45"]
[WhiteElo "2558"]
[BlackElo "2417"]
[Annotator "TA"]
[PlyCount "73"]
[EventDate "2024.09.05"]
[EventType "team-tourn"]
[EventCountry "HUN"]
[SourceTitle "playchess.com"]
[Source "ChessBase"]
[SourceQuality "1"]
[WhiteTeam "Italy"]
[BlackTeam "Paraguay"]
[WhiteTeamCountry "ITA"]
[BlackTeamCountry "PAR"]
[TimeControl "40/5400+30:1800+30"]

{[%evp 16,73,10,0,3,0,19,14,51,7,4,0,0,-13,-15,-36,-42,-26,12,0,-3,-37,-31,-32,-22,-22,-25,-23,-24,-33,-16,-25,-4,-28,-20,-20,-15,-47,0,0,0,0,0,0,0,0,0,0,37,28,129,134,357,362,363,368,352,347,545,529]} 1. d4 d5 2. c4 c6 3. Nc3 Nf6 4. e3 e6 5. Nf3 Nbd7 6. Be2 Bd6 7. O-O O-O 8. b3 {[%cal Bb2b3,Bb3c4,Bc4c5][%mdl 32]} Qe7 9. Bb2 Re8 10. Re1 dxc4 11. bxc4 e5 {[%cal Be6e5,Be5e4][%mdl 32] The position is equal.} 12. c5 Bc7 13. Bc4 {[%cal Be2c4,Bc4b3,Bb3c2][%mdl 32]} b5 14. Bb3 b4 15. Na4 e4 16. Nd2 Nf8 17. f3 Be6 18. Bc2 Bd5 19. a3 a5 20. fxe4 Nxe4 21. Nxe4 Bxe4 22. Bxe4 Qxe4 23. Qf3 $1 Rab8 24. axb4 axb4 25. Qxe4 Rxe4 26. Bc1 Nd7 (26... f5 $1 $15) 27. Nb2 $11 Nf6 28. Nc4 Nd5 29. Ra6 f5 30. Rxc6 b3 31. g3 Re7 32. Bd2 Ra8 (32... g5 $1 $11 {keeps the balance.}) 33. Rb1 $36 {[%mdl 2048] White is in control.} Ra4 $2 {[#] This move loses the game for Black.} (33... Ra2 $16 {was worth a try.}) 34. Nb6 $18 Bxb6 35. cxb6 Ra2 36. Rxb3 ({Don't do} 36. Bc1 Rb7 37. Rxb3 Ne7 $18) 36... Nxb6 (36... Rxd2 $2 {perishes.} 37. b7 $18) (36... Rb7 {is a better defense.} 37. Be1 h5) 37. Bb4 {Weighted Error Value: White=0.07 (flawless) /Black=0.34.  Loses game:     	---       	Black=1      Mistake:       	---       	Black=3      Inaccurate:     	White=2     	Black=3      OK:         	White=12    	Black=8      Best:        	White=3     	Black=2      Strong:       	White=1     	---} 1-0

[Event "45th FIDE Olympiad 2024"]
[Site "Budapest"]
[Date "2024.09.15"]
[Round "5.83"]
[White "Abdul Rahman, Ali"]
[Black "Farquhar, Abner"]
[Result "0-1"]
[ECO "D00"]
[WhiteElo "1844"]
[BlackElo "1678"]
[PlyCount "106"]
[EventDate "2024.09.05"]
[EventType "team-tourn"]
[EventCountry "HUN"]
[WhiteTeam "Maldives"]
[BlackTeam "Antigua and Barbuda"]
[WhiteTeamCountry "MDV"]
[TimeControl "40/5400+30:1800+30"]

1. d4 d5 2. e3 Nf6 3. Bd3 c5 4. c3 Nc6 5. f4 Bg4 6. Nf3 e6 7. Nbd2 Bd6 8. O-O cxd4 9. cxd4 O-O 10. a3 Qe7 11. Qe1 Bf5 12. Qe2 Ne4 13. Bxe4 Bxe4 14. Nxe4 dxe4 15. Nd2 f5 16. Nc4 Rac8 17. Bd2 Rc7 18. Nxd6 Qxd6 19. Bc3 Rfc8 20. Rad1 Qd5 21. Kh1 Ne7 22. Rg1 Qb3 23. d5 Nxd5 24. Bd4 a6 25. Qh5 Nxe3 26. Qh3 Qxd1 27. Rxd1 Nxd1 28. Qb3 Kf7 29. h3 b5 30. Kh2 Rc2 31. Qg3 e5 32. Bxe5 e3 33. Qxg7+ Ke8 34. Qg8+ Kd7 35. Qd5+ Ke8 36. Qxd1 e2 37. Qe1 R8c4 38. Kg3 Re4 39. Bc3 a5 40. Kf3 b4 41. axb4 axb4 42. Bxb4 Rxb2 43. Bd2 Rxd2 44. Qxd2 e1=Q 45. Qxe1 Rxe1 46. g4 Kf7 47. gxf5 Kf6 48. Kg4 Rg1+ 49. Kh5 Rh1 50. Kg4 h5+ 51. Kxh5 Rxh3+ 52. Kg4 Rh1 53. Kg3 Kxf5 {0-} 0-1

[Event "45th FIDE Olympiad 2024"]
[Site "Budapest"]
[Date "2024.09.15"]
[Round "5.84"]
[White "Almiron, Antonio"]
[Black "Brunello, Sabino"]
[Result "0-1"]
[ECO "B12"]
[WhiteElo "2312"]
[BlackElo "2511"]
[Annotator "TA"]
[PlyCount "132"]
[EventDate "2024.09.05"]
[EventType "team-tourn"]
[EventCountry "HUN"]
[SourceTitle "playchess.com"]
[Source "ChessBase"]
[SourceQuality "1"]
[WhiteTeam "Paraguay"]
[BlackTeam "Italy"]
[WhiteTeamCountry "PAR"]
[BlackTeamCountry "ITA"]
[TimeControl "40/5400+30:1800+30"]

{[%evp 12,132,16,25,48,41,64,70,82,77,83,53,47,16,38,52,53,10,8,5,22,15,0,8,15,0,9,0,0,7,17,-15,0,5,6,0,0,4,7,-12,0,0,0,0,0,-16,-16,-16,-16,-16,-16,-34,-23,-27,-6,-20,-54,-85,-33,-45,-33,-33,-31,-135,-127,-170,-162,-215,-209,-175,-167,-244,-76,-76,-82,-173,-79,-79,-79,-160,-150,-448,-422,-687,-514,-806,-693,-695,-675,-813,-802,-812,-808,-768,-624,-686,-739,-579,-630,-690,-646,-639,0,-821,-500,-673,-650,-652,-538,-1402,-1335,-1025,-904,-1120,-939,-3843,-2683,-1864,-1605,-1584,-1580,-29977,-29978]} 1. e4 c6 2. d4 d5 3. e5 Bf5 4. Nf3 e6 5. Be2 Ne7 6. c3 Nd7 7. O-O Ng6 8. Ne1 f6 9. f4 {[%cal Bf2f4,Bf4e5][%mdl 32]} fxe5 {White is slightly better.} 10. fxe5 c5 11. Be3 Be7 12. Bd3 cxd4 13. cxd4 Nh4 14. Nc3 O-O 15. g3 Bxd3 {[%csl Gd3][%cal Rf8f1]} 16. Rxf8+ Nxf8 17. Qxd3 Nf5 18. Bf2 Rc8 19. Rc1 Qd7 20. Rc2 Bb4 21. Qb5 Bxc3 22. Qxd7 Nxd7 {[%cal Bf8d7,Bd7b6,Bb6c4][%mdl 32]} 23. Rxc3 Rxc3 24. bxc3 $11 {[%mdl 4096] Endgame. KBN-KNN} Nb6 25. Nc2 Kf7 26. Kf1 Nc4 27. Ke2 Ne7 28. Ne3 Nxe3 29. Bxe3 {KB-KN} Nc8 30. g4 Nb6 31. Kd3 Ke8 32. Kc2 Kd7 33. Kb3 Kc6 34. Bg5 Nc4 (34... Kb5 $1 $17) 35. Kb4 Nb2 {...Nd3+ is the strong threat.} 36. Be3 Kb6 37. Kb3 ({White should play} 37. h4 $15) 37... Nc4 $17 38. Bg5 Kb5 $1 39. a4+ (39. Kc2 $142) 39... Kc6 $19 40. h3 b5 41. Bd8 (41. a5 {was necessary.}) 41... bxa4+ $2 (41... a5 $19 {and Black stays clearly on top.} 42. h4 Ne3) 42. Kxa4 $17 Nd2 43. Kb4 {[#]} (43. Ka5 $17 {keeps fighting.}) 43... Ne4 (43... Nf3 $1 $19 {aiming for ...Kd7.} 44. Be7 Kd7) 44. Bh4 g6 45. Be1 {[#]} (45. Ka5 $142) 45... Ng5 $1 46. Bd2 $2 (46. h4 $17 Nf3 47. Bg3) 46... Nxh3 $19 47. Be3 (47. g5 $142 Nf2 48. Be3) 47... g5 48. Ka5 Kb7 49. Kb5 Nf4 50. Kc5 Kc7 51. Kb5 h6 52. Ka6 Kb8 53. Kb5 Kb7 54. Kc5 Kc7 55. Kb5 Ne2 56. Bd2 Nf4 $2 (56... Ng3 $19 57. Bc1 Nf1) 57. Ka6 $2 {[%mdl 8192]} (57. Be3 $11 Ne2 58. c4) 57... Kb8 58. Bc1 Nd3 59. Be3 Nb2 {And now ...Nd1 would win.} 60. Kb5 Kb7 {Strongly threatening ...a6+.} 61. Kc5 Kc7 62. Bd2 Nc4 63. Bc1 a6 64. Kb4 Kb6 65. Ka4 a5 66. Kb3 Kb5 {Weighted Error Value: White=0.50/Black=0.26 (precise) .  Loses game:     	White=1     	---        Missed win:     	---       	Black=1      Mistake:       	White=6     	Black=2      Inaccurate:     	White=7     	---        OK:         	White=11    	Black=12     Best:        	White=2     	Black=3      Strong:       	---       	Black=2} 0-1